Cogmind - Beta 14 @@@ ROGUE MODE // 2024.08.28 @ 16:37:28 Player: THN-L0C Result: Destroyed by G-47 Trooper with Particle Gun Performance ------------- Evolutions (0) 0 Regions Visited (1) 200 Robots Destroyed (11) 55 Value Destroyed (313) 313 Prototype IDs (2) 40 Alien Tech Used (0) 0 Bonus (0) 0 TOTAL SCORE: 608 Bonus ------- None Cogmind --------- Core Integrity 0/250 Matter 291/300 Energy 153/160 System Corruption 0% Temperature Cool (44) Movement Treading (240) Ox1 Location -10/Materials Parts ------- > --- POWER (1) -------- Light Nuclear Core > --- PROPULSION (2) --- Light Treads Backup Propulsion I > --- UTILITY (2) ------ Large Storage Unit Power Shielding > --- WEAPON (2) ------- Backup Laser I Light Assault Rifle > --- INVENTORY (15) --- Light Ion Engine Sensor Array Seismic Detector Seismic Detector Propulsion Shielding Utility Shielding Medium Laser Medium Laser Medium Laser Light Cannon Grenade Launcher Grenade Launcher Grenade Launcher Mining Laser Hammer Peak State ------------ > --- POWER ------------ Light Nuclear Core > --- PROPULSION ------- Light Treads Backup Propulsion I > --- UTILITY ---------- Large Storage Unit Power Shielding > --- WEAPON ----------- Backup Laser I Light Assault Rifle > --- INVENTORY -------- Light Ion Engine Sensor Array Seismic Detector Propulsion Shielding Utility Shielding Medium Laser Medium Laser Medium Laser Light Cannon Grenade Launcher Grenade Launcher Grenade Launcher Mining Laser [Rating: 10] Favorites ----------- Power Light Ion Engine Engine Light Ion Engine Power Core Light Nuclear Core Propulsion Light Treads Treads Light Treads Hover Unit Backup Propulsion I Utility Large Storage Unit Device Seismic Detector Storage Large Storage Unit Protection Power Shielding Weapon Light Assault Rifle Energy Gun Medium Laser Ballistic Gun Light Assault Rifle Ballistic Cannon Light Cannon Special Weapon Mining Laser Build | -11 -10 ------- Run | Yrd Mat Slots Evolved . | . . Power . | . . Propulsion . | . . Utility . | . . Weapon . | . . Parts Attached 16 | 7 9 Power 3 | 1 2 Engine 2 | 1 1 Core 1 | . 1 Reactor . | . . Propulsion 2 | 2 . Treads 2 | 2 . Leg . | . . Wheel . | . . Hover . | . . Flight . | . . Utility 5 | 2 3 Device 1 | 1 . Storage 2 | 1 1 Processor . | . . Hackware . | . . Protection 2 | . 2 Artifact . | . . Weapon 6 | 2 4 Energy Gun 1 | 1 . Energy Cannon . | . . Ballistic Gun 2 | 1 1 Ballistic Cannon 2 | . 2 Launcher . | . . Special Weapon 1 | . 1 Impact Weapon . | . . Slashing Weapon . | . . Piercing Weapon . | . . Special Melee Weapon . | . . Unidentified Prototypes . | . . Parts Lost 5 | . 5 Power 2 | . 2 Propulsion 1 | . 1 Utility 1 | . 1 Weapon 1 | . 1 Highest Loss Streak 4 | . 4 To Critical Strikes . | . . Average Slot Usage (%) 92 | . 92 Engine 7 | . 7 Core 5 | . 5 Treads 21 | . 21 Hover 2 | . 2 Device 6 | . 6 Storage 14 | . 14 Protection 6 | . 6 Energy Gun 9 | . 9 Ballistic Gun 8 | . 8 Ballistic Cannon 4 | . 4 Special Weapon 2 | . 2 Peak Build Rating 10 | 7 10 Average Rating 7 | 5 7 On Entrance 3 | . 7 Naked Turns . | . . Heaviest Build 32 | 12 32 Greatest Support 40 | 40 40 Greatest Overweight (x) 3 | 3 1 Average Overweight (x) . | . . Largest Inventory Capacity 15 | 8 15 Average Capacity 13 | 7 14 Most Carried 15 | 1 15 Average Carried 9 | . 10 Final Capacity 15 | 8 15 Final Carried 15 | 1 15 Class Distribution -------------------- 100% | Mutant Dominant Class ---------------- Mutant | -10/Materials Resources | -11 -10 ----------- Run | Yrd Mat Matter Collected 479 | 275 204 Remotely . | . . Salvage Created 359 | 117 242 Parts 16 | 6 10 Haulers Intercepted . | . . Recyclers Shooed . | . . Parts Field Recycled . | . . Retrieved Matter . | . . Parts Self-Destructed . | . . Prevented . | . . Kills | -11 -10 ------- Run | Yrd Mat Combat Hostiles Destroyed 7 | . 7 Guns 5 | . 5 Cannons 2 | . 2 Classes Destroyed 4 | 2 2 Tunneler 2 | 2 . Recycler 1 | 1 . Operator 1 | . 1 Grunt 7 | . 7 Best Kill Streak 3 | 3 2 Combat Bots Only 2 | . 2 Max Kills in Single Turn 1 | 1 1 Gunslinging . | . . Exploded . | . . Melee . | . . Uniques/NPCs Destroyed . | . . Combat | -11 -10 -------- Run | Yrd Mat Hostile Shots Fired 95 | . 95 Missed 26 | . 26 Damage Taken 960 | . 960 Core 259 | . 259 Absorbed by Shields . | . . Redirected to Shielding 17 | . 17 Core Remaining (%) 100 | 100 . Volleys Fired 78 | 5 73 Largest 2 | 2 2 Hottest 100 | 70 100 Shots Fired 116 | 10 106 Gun 74 | 10 64 Cannon 25 | . 25 Launcher . | . . Special 17 | . 17 Kinetic 78 | 5 73 Thermal 38 | 5 33 Explosive . | . . Electromagnetic . | . . Robot Hit Streak 11 | 4 11 Robot Miss Streak 4 | 1 4 Penetration Max . | . . Secondary Targets . | . . Shots Hit Robots 68 | 6 62 Core Hits 26 | 4 22 Critical Kills . | . . Critical Parts Destroyed . | . . Critical Strikes 2 | . 2 Burn 2 | . 2 Melee Attacks . | . . Impact . | . . Slashing . | . . Piercing . | . . Sneak Attacks . | . . Combat Hostiles . | . . Follow-up Attacks . | . . Damage Inflicted 742 | 62 680 Guns 449 | 62 387 Cannons 293 | . 293 Explosions . | . . Melee . | . . Ramming . | . . Kinetic 572 | 25 547 Thermal 170 | 37 133 Explosive . | . . Electromagnetic . | . . Impact . | . . Slashing . | . . Piercing . | . . Highest Corruption . | . . Average Corruption . | . . Corruption Purged . | . . Corruption Blocked . | . . Overload Shots . | . . Overflow Damage 4 | . 4 Projectiles 4 | . 4 Explosions . | . . Melee . | . . Knockbacks 4 | . 4 Impact . | . . Kinetic 4 | . 4 Secondary . | . . Self-Inflicted Damage . | . . Shots . | . . Rammed . | . . Targets Rammed . | . . Kicked . | . . Crushed . | . . Highest Temperature 229 | 80 229 Average Temperature 51 | 36 52 Received Heat Transfer 582 | . 582 Siege Activations . | . . Robots Corrupted . | . . Combat Hostiles . | . . Parts Fried . | . . Impact Corruptions . | . . Robots Melted . | . . Combat Hostiles . | . . Parts Melted 1 | . 1 Heat Transferred 703 | 111 592 Parts Sabotaged . | . . Parts Stolen . | . . Parts Stripped . | . . Power Chain Reactions . | . . Alert | -11 -10 ------- Run | Yrd Mat Peak Influence 227 | 15 227 Initial 9 | . 9 Average 62 | 4 65 Maximum Alert Level 1 | . 1 Low Security (%) 85 | 100 85 Level 1 14 | . 14 Level 2 . | . . Level 3 . | . . Level 4 . | . . Level 5 . | . . High Security . | . . Max Security . | . . Squads Dispatched . | . . Investigation . | . . Extermination . | . . Reinforcement . | . . Assault . | . . Garrison . | . . Intercept . | . . Searches Triggered . | . . Construction Impeded . | . . Haulers Reinforced . | . . Active Scanning Responses . | . . Cargo Convoy Interrupts . | . . Stealth | -11 -10 --------- Run | Yrd Mat Distress Signals 4 | . 4 Communications Jammed . | . . Distress Signals . | . . Times Spotted 26 | . 26 Peak Tracking Total 7 | . 7 Tactical Retreats 4 | . 4 Traps | -11 -10 ------- Run | Yrd Mat Traps Triggered . | . . Indirectly . | . . Trap Hack Attempts . | . . Triggered . | . . Disarmed . | . . Reprogrammed . | . . Reused . | . . Traps Extracted . | . . Installed . | . . Triggered . | . . Machines | -11 -10 ---------- Run | Yrd Mat Machines Disabled . | . . Max in Single Turn . | . . Machines Repaired . | . . Machines Dismantled . | . . Machines Sabotaged . | . . Overloaded Fab Kills . | . . Hacking | -11 -10 --------- Run | Yrd Mat Machines Accessed 8 | . 8 Terminals 7 | . 7 Fabricators . | . . Repair Stations 1 | . 1 Recycling Units . | . . Scanalyzers . | . . Garrison Access . | . . Total Hacks 30 | . 30 Successful 16 | . 16 Failed 13 | . 13 Catastrophic 1 | . 1 Database Lockouts 1 | . 1 Manual 17 | . 17 Terminals 28 | . 28 Fabricators . | . . Repair Stations 2 | . 2 Recycling Units . | . . Scanalyzers . | . . Garrison Access . | . . Terminal Hacks 7 | . 7 Robot Analysis 2 | . 2 Prototype ID Bank 1 | . 1 Alert Level 1 | . 1 Unreport Threat 1 | . 1 Hauler Manifests 1 | . 1 Registered Components 1 | . 1 Fabricator Hacks . | . . Repair Station Hacks 1 | . 1 Refit 1 | . 1 Recycling Unit Hacks . | . . Scanalyzer . | . . Garrison Access Hacks . | . . Unauthorized Hacks 8 | . 8 Terminals 8 | . 8 Botnet 3 | . 3 Skim 5 | . 5 Fabricators . | . . Repair Stations . | . . Recycling Units . | . . Scanalyzers . | . . Garrison Access . | . . Data Cores Recovered 1 | . 1 Used 1 | . 1 Hacking Detections 5 | . 5 Full Trace Events . | . . Feedback Events . | . . Feedback Blocked . | . . Robot Schematics Acquired . | . . Robots Built . | . . Authchips . | . . Time . | . . Total Robot Build Rating . | . . Part Schematics Acquired . | . . Parts Built . | . . Authchips . | . . Time . | . . Total Part Build Rating . | . . Parts Repaired . | . . Time . | . . Parts Recycled . | . . Recycled Matter . | . . Retrieved Matter . | . . Retrieved Components . | . . Parts Scanalyzed . | . . Part Schematics Acquired . | . . Parts Damaged . | . . Bothacking | -11 -10 ------------ Run | Yrd Mat Used RIF Installer . | . . Robots Hacked . | . . Non-combat . | . . Combat . | . . Robot Hacks Applied . | . . Relay Couplers Released . | . . Fabnet Peak Effective % . | . . Robots Rewired . | . . Allies Hacked . | . . Hacks Repelled . | . . Allies | -11 -10 -------- Run | Yrd Mat Total Allies . | . . Largest Group . | . . Highest-Rated Group . | . . Highest-Rated Ally . | . . Total Orders . | . . Ally Attacks . | . . Total Damage . | . . Kills . | . . Allies Corrupted . | . . Allies Melted . | . . Intel | -11 -10 ------- Run | Yrd Mat Robot Analysis Total 2 | . 2 Derelict Logs Recovered . | . . Drone Launches . | . . Drone Recoveries . | . . Exploration | -11 -10 ------------- Run | Yrd Mat Turns Passed 1704 | 97 1607 Spaces Moved 729 | 49 680 Core 18 | 18 . Treads 711 | 31 680 Legs . | . . Wheels . | . . Hover . | . . Flight . | . . Fastest Speed 50 | 50 160 Average Speed 188 | 145 191 Slowest Speed 240 | 200 240 Overloaded Moves . | . . Propulsion Burnouts . | . . Robots Hopped . | . . Cave-ins Triggered . | . . Exploration Rate (%) 46 | 3 89 Regions Visited 1 Branch Regions . Pre-discovered Areas 1 | . 1 Known Exits Taken . | . . Unknown Exits Taken 1 | 1 . Scrap Searched . | . . Spaces Dug 17 | . 17 Terrain Destroyed 17 | . 17 Melee . | . . Projectile 17 | . 17 AOE . | . . Terrain Rammed . | . . Walls Destroyed . | . . Machines Disabled . | . . Actions | -11 -10 --------- Run | Yrd Mat Total 914 | 62 852 Wait 75 | 1 74 Move 728 | 48 680 Hop . | . . Pick Up 16 | 1 15 Fast Attach 9 | 7 2 Attach 1 | . 1 Detach . | . . Swap 6 | . 6 Drop 1 | . 1 Fire 78 | 5 73 Melee . | . . Ram . | . . Kick . | . . Crush . | . . Escape Stasis . | . . Rewire . | . . Trap . | . . Miscellaneous . | . . Route ------- -11/Scrapyard -10/Materials (discovered 5 exits: *Mat x3 / [*Min] / Sub) History --------- Turn | Location | Event 34 | -11/Scrapyard | Discovered new exit (range 14) 98 | -11/Scrapyard | Entered Materials 132 | -10/Materials | Discovered new exit (range 11) 318 | -10/Materials | Build established: Mutant 638 | -10/Materials | Discovered new exit (range 10) 765 | -10/Materials | Central database locked down 950 | -10/Materials | Core integrity fell below 50% 1035 | -10/Materials | Core integrity fell below 20% 1069 | -10/Materials | Lost 4 parts (1p1n1u1w) 1131 | -10/Materials | Discovered new exit (range 8) 1290 | -10/Materials | Identified exit to Materials 1290 | -10/Materials | Identified exit to Subcaves 1363 | -10/Materials | Learned Storage trap positions 1520 | -10/Materials | Learned 4 Recycling zone layouts 1597 | -10/Materials | Learned Materials emergency access door positions 1650 | -10/Materials | Loaded intel: 12 trap records 1705 | -10/Materials | Destroyed by G-47 Trooper with Particle Gun Last Messages --------------- 01467_ Acquired Hammer. 01475_ Connecting with Terminal... >>Manifests Retrieving manifest data... Found 2 haulers: A-02 Transporter 2x Power Shielding 1x Matter (77) 1x Wheel A-02 Transporter 3x Beam Cannon >>Alert(Check) Current Alert Level: Low Security 01477_ >> SKIM: World map updated: -8/Materials. 01520_ >> SKIM: Stored Recycling zone layouts (x4). 01554_ >> SKIM: Stored Subcaves entrances (x1). 01597_ >> SKIM: Stored Materials emergency access points. 01650_ >> SKIM: Loading Materials trap records (x12)... 01669_ W-16 Scout sends out distress signal. 01694_ G-34 Mercenary destroyed. Map ----- +----------------------------------------------------+ | ##+######## #??????# #????